Cogmind - Beta 14 @@@ ROGUE MODE // 2024.11.24 @ 04:48:35 Player: Fangrelle Result: Destroyed by L-31 Rogue with Katana Performance ------------- Evolutions (2) 1000 Regions Visited (6) 1200 Robots Destroyed (93) 465 Value Destroyed (3175) 3175 Prototype IDs (32) 640 Alien Tech Used (0) 0 Bonus (994) 994 TOTAL SCORE: 7474 Bonus ------- High Alert Combat Kills 390 Follower Combat Kills 304 Aligned with FarCom 300 Cogmind --------- Core Integrity 0/550 Matter 300/300 Energy 275/275 System Corruption 3% Temperature Cool (9) Movement Core (600) Ox11 Location -8/Storage Parts ------- > --- POWER (1) -------- Deuterium Engine > --- PROPULSION (4) --- Light Treads > --- UTILITY (4) ------ Large Storage Unit Light Armor Plating Hacking Suite System Shield > --- WEAPON (2) ------- Scythe Scythe > --- INVENTORY (15) --- Flying Fortress v7 Advanced Heat Sink Advanced Visual Processing Unit Improved Signal Interpreter Improved Weapon Shielding System Shield Sensor Drone Bay (20/20) Improved Assault Rifle Assault Cannon Advanced EMP Blaster Missile Launcher Plasma Cutter Peak State ------------ > --- POWER ------------ Reinforced Deuterium Engine > --- PROPULSION ------- Armored Treads VSS Leg VSS Leg Improved VTOL Module > --- UTILITY ---------- Large Storage Unit Hardened Heavy Armor Plating System Shield > --- WEAPON ----------- Improved Assault Rifle Improved Assault Rifle > --- INVENTORY -------- Light Fission Core Armored Treads Flying Fortress v7 Advanced Visual Processing Unit Sensor Drone Bay Improved Assault Rifle Rocket Launcher Plasma Cutter [Rating: 40] Favorites ----------- Power Reinforced Deuterium Engine Engine Reinforced Deuterium Engine Propulsion Light Treads Treads Light Treads Leg VSS Leg Hover Unit Aerolev Unit Flight Unit Improved VTOL Module Utility Large Storage Unit Device Sensor Drone Bay Storage Large Storage Unit Processor Advanced Visual Processing Unit Hackware Hacking Suite Protection Improved Light Armor Plating Weapon Heavy Assault Rifle Energy Gun EM Pulse Gun Energy Cannon Advanced Beam Cannon Ballistic Gun Heavy Assault Rifle Launcher Advanced EMP Blaster Slashing Weapon Scythe Build | -11 -10 -10 -10 -9 -8 -8 ------- Run | Yrd Mat Min Exi Min Mat Sto Slots Evolved 4 | . . . . . 4 . Power . | . . . . . . . Propulsion 2 | . . . . . 2 . Utility 2 | . . . . . 2 . Weapon . | . . . . . . . Parts Attached 87 | . 6 1 3 4 58 15 Power 7 | . 1 . . 1 3 2 Engine 7 | . 1 . . 1 3 2 Core . | . . . . . . . Reactor . | . . . . . . . Propulsion 36 | . 2 . . 1 26 7 Treads 28 | . 2 . . 1 20 5 Leg 4 | . . . . . 2 2 Wheel . | . . . . . . . Hover 1 | . . . . . 1 . Flight 3 | . . . . . 3 . Utility 22 | . . 1 3 . 16 2 Device 4 | . . 1 1 . 2 . Storage 2 | . . . 1 . 1 . Processor 1 | . . . . . 1 . Hackware 5 | . . . 1 . 4 . Protection 10 | . . . . . 8 2 Artifact . | . . . . . . . Weapon 22 | . 3 . . 2 13 4 Energy Gun 2 | . . . . . 1 1 Energy Cannon 1 | . . . . . . 1 Ballistic Gun 13 | . 3 . . 2 8 . Ballistic Cannon . | . . . . . . . Launcher 1 | . . . . . 1 . Special Weapon . | . . . . . . . Impact Weapon . | . . . . . . . Slashing Weapon 5 | . . . . . 3 2 Piercing Weapon . | . . . . . . . Special Melee Weapon . | . . . . . . . Unidentified Prototypes 9 | . . 1 1 . 5 2 Parts Lost 32 | . . 1 . 5 20 6 Power 3 | . . 1 . 1 1 . Propulsion 15 | . . . . 2 8 5 Utility 8 | . . . . . 7 1 Weapon 6 | . . . . 2 4 . Highest Loss Streak 9 | . . 1 . 2 9 2 To Critical Strikes . | . . . . . . . Average Slot Usage (%) 84 | . 84 79 71 76 89 94 Engine 6 | . 14 8 . 5 6 9 Treads 26 | . 26 28 28 14 28 30 Storage 11 | . 14 14 14 14 9 9 Processor 1 | . . . . . 2 . Hackware 9 | . . . . 14 11 18 Protection 5 | . . . . . 9 9 Ballistic Gun 15 | . 20 28 28 27 9 . Slashing Weapon 5 | . . . . . 8 17 Peak Build Rating 40 | 6 9 17 22 20 40 30 Average Rating 21 | 6 7 9 11 17 30 28 On Entrance 13 | 6 6 9 10 17 16 29 Naked Turns . | . . . . . . . Heaviest Build 61 | 11 16 16 26 30 61 36 Greatest Support 82 | 20 40 40 40 40 82 80 Greatest Overweight (x) 11 | . . . . 8 8 11 Average Overweight (x) . | . . . . . . . Largest Inventory Capacity 15 | 8 8 8 15 15 15 15 Average Capacity 13 | 8 8 8 13 15 15 15 Most Carried 15 | 5 8 8 15 15 15 15 Average Carried 12 | 5 5 7 10 14 14 14 Final Capacity 15 | 8 8 8 15 15 15 15 Final Carried 15 | 5 8 8 14 15 15 15 Class Distribution -------------------- 55% | Mutant 22% | Scavenger-Mutant 21% | Hacker-Mutant Dominant Class ---------------- Mutant | -10/Materials Mutant | -10/Mines Mutant | -10/Exiles Mutant | -9/Mines Scavenger-Mutant | -8/Materials Hacker-Mutant | -8/Storage Resources | -11 -10 -10 -10 -9 -8 -8 ----------- Run | Yrd Mat Min Exi Min Mat Sto Matter Collected 2246 | 208 102 163 . 249 1352 172 Remotely . | . . . . . . . Salvage Created 4015 | 96 183 229 . 269 2455 783 Parts 225 | 4 18 14 . 9 136 44 Haulers Intercepted 6 | . . . . . 4 2 Recyclers Shooed 4 | . 1 . . 2 . 1 Parts Field Recycled . | . . . . . . . Retrieved Matter . | . . . . . . . Parts Self-Destructed . | . . . . . . . Prevented . | . . . . . . . Kills | -11 -10 -10 -10 -9 -8 -8 ------- Run | Yrd Mat Min Exi Min Mat Sto Combat Hostiles Destroyed 75 | . 5 9 . 9 40 12 Melee 22 | . . . . . 10 12 Guns 53 | . 5 9 . 9 30 . Classes Destroyed 15 | 1 4 . . 3 7 . Worker 2 | . . . . . 2 . Builder 2 | . . . . . 2 . Tunneler 1 | . . . . 1 . . Hauler 6 | . . . . . 4 2 Recycler 2 | 1 . . . . 1 . Operator 1 | . 1 . . . . . Watcher 7 | . 1 . . . 5 1 Swarmer 11 | . 3 5 . 3 . . Grunt 43 | . 2 4 . 3 25 9 Brawler 2 | . . . . . 2 . Duelist 3 | . . . . 1 2 . Sentry 11 | . . . . . 8 3 Specialist 2 | . . . . . 2 . Heavy 1 | . . . . . 1 . Assembled 2 | . . . . 2 . . Best Kill Streak 5 | 1 3 3 . 3 5 3 Combat Bots Only 5 | . 2 3 . 3 5 2 Max Kills in Single Turn 2 | 1 1 1 . 1 2 1 Gunslinging . | . . . . . . . Exploded . | . . . . . . . Melee 1 | . . . . . 1 1 Uniques/NPCs Destroyed . | . . . . . . . Combat | -11 -10 -10 -10 -9 -8 -8 -------- Run | Yrd Mat Min Exi Min Mat Sto Hostile Shots Fired 484 | . 31 43 . 50 263 97 Missed 119 | . 7 12 . 16 62 22 Damage Taken 6234 | . 246 327 . 524 3892 1245 Core 767 | . 23 41 . 142 416 145 Absorbed by Shields . | . . . . . . . Redirected to Shielding 4 | . . . . . 4 . Ignored by Resistances 4 | . . . . . 4 . Core Remaining (%) 58 | 100 . . . 17 . . Volleys Fired 225 | 8 24 21 . 34 138 . Largest 2 | 2 2 2 . 2 2 . Hottest 60 | 60 60 46 . 46 46 . Shots Fired 431 | 16 44 42 . 64 265 . Gun 431 | 16 44 42 . 64 265 . Cannon . | . . . . . . . Launcher . | . . . . . . . Special . | . . . . . . . Kinetic 406 | 8 27 42 . 64 265 . Thermal . | . . . . . . . Explosive . | . . . . . . . Electromagnetic 25 | 8 17 . . . . . Robot Hit Streak 25 | 5 4 6 . 9 25 . Robot Miss Streak 5 | 2 3 4 . 5 3 . Penetration Max . | . . . . . . . Secondary Targets 11 | . . . . 2 9 . Max Gunslinging Chain 1 | . . . . 1 1 . Shots Hit Robots 386 | 11 21 25 . 40 249 40 Core Hits 158 | 2 10 12 . 16 100 18 Critical Kills . | . . . . . . . Critical Parts Destroyed . | . . . . . . . Critical Strikes 8 | . . . . . 5 3 Sever 8 | . . . . . 5 3 Melee Attacks 140 | . . . . . 74 66 Impact . | . . . . . . . Slashing 140 | . . . . . 74 66 Piercing . | . . . . . . . Sneak Attacks 8 | . . . . . 3 5 Combat Hostiles . | . . . . . . . Follow-up Attacks 12 | . . . . . 4 8 Damage Inflicted 7805 | 110 319 403 . 620 4918 1435 Guns 4678 | 110 288 403 . 615 3262 . Cannons . | . . . . . . . Explosions 140 | . 31 . . . 109 . Melee 2982 | . . . . . 1547 1435 Ramming 5 | . . . . 5 . . Kinetic 4491 | 44 167 403 . 615 3262 . Thermal 140 | . 31 . . . 109 . Explosive . | . . . . . . . Electromagnetic 187 | 66 121 . . . . . Impact . | . . . . . . . Slashing 2982 | . . . . . 1547 1435 Piercing . | . . . . . . . Highest Corruption 3 | . . . . . 3 3 Average Corruption 3 | . . . . . 3 3 Corruption Purged . | . . . . . . . Corruption Blocked . | . . . . . . . Effects 47 | . . . . . 30 17 Message Errors 10 | . . . . . 7 3 Matter Fused 14 | . . . . . 9 5 Heat Flow Errors 10 | . . . . . 6 4 Energy Discharges 3 | . . . . . 1 2 Data Loss (minor) 7 | . . . . . 5 2 Data Loss (major) 2 | . . . . . 1 1 Misfires 1 | . . . . . 1 . Overload Shots . | . . . . . . . Overflow Damage 122 | . 11 . . . 79 32 Projectiles . | . . . . . . . Explosions 85 | . 11 . . . 74 . Melee 37 | . . . . . 5 32 Knockbacks 1 | . . . . 1 . . Impact 1 | . . . . 1 . . Kinetic . | . . . . . . . Secondary . | . . . . . . . Self-Inflicted Damage . | . . . . . . . Shots . | . . . . . . . Rammed 1 | . . . . 1 . . Targets Rammed 2 | . . . . 2 . . Kicked . | . . . . . . . Crushed 1 | . . . . 1 . . Highest Temperature 351 | 40 57 13 . 6 351 258 Average Temperature 100 | 24 26 5 . 4 112 107 Received Heat Transfer 2577 | . 99 120 . 99 1611 648 Effects 4 | . . . . . 4 . Shutdowns 1 | . . . . . 1 . Energy Bleed 1 | . . . . . 1 . Interference 2 | . . . . . 2 . Siege Activations . | . . . . . . . Robots Corrupted . | . . . . . . . Combat Hostiles . | . . . . . . . Parts Fried 1 | . 1 . . . . . Impact Corruptions . | . . . . . . . Robots Melted . | . . . . . . . Combat Hostiles . | . . . . . . . Parts Melted . | . . . . . . . Heat Transferred 100 | . 50 . . . 50 . Parts Sabotaged . | . . . . . . . Parts Stolen . | . . . . . . . Parts Stripped . | . . . . . . . Power Chain Reactions 1 | . 1 . . . . . Alert | -11 -10 -10 -10 -9 -8 -8 ------- Run | Yrd Mat Min Exi Min Mat Sto Peak Influence 891 | 5 217 211 . 155 891 762 Initial 365 | . 3 84 . . . 365 Average 308 | 4 130 98 . 86 404 547 Maximum Alert Level 3 | . 1 1 . . 3 3 Low Security (%) 50 | 100 64 88 . 100 34 . Level 1 8 | . 35 11 . . 7 3 Level 2 35 | . . . . . 45 95 Level 3 6 | . . . . . 12 1 Level 4 . | . . . . . . . Level 5 . | . . . . . . . High Security . | . . . . . . . Max Security . | . . . . . . . Squads Dispatched 15 | . 1 . . . 10 4 Investigation 3 | . 1 . . . 1 1 Extermination . | . . . . . . . Reinforcement 3 | . . . . . 3 . Assault 3 | . . . . . . 3 Garrison 6 | . . . . . 6 . Intercept . | . . . . . . . Searches Triggered . | . . . . . . . Construction Impeded 1 | . . . . . 1 . Haulers Reinforced . | . . . . . . . Active Scanning Responses . | . . . . . . . Cargo Convoy Interrupts . | . . . . . . . Stealth | -11 -10 -10 -10 -9 -8 -8 --------- Run | Yrd Mat Min Exi Min Mat Sto Distress Signals 10 | . 2 . . 2 5 1 Communications Jammed . | . . . . . . . Distress Signals . | . . . . . . . Times Spotted 127 | . 11 10 . 14 62 30 Peak Tracking Total 8 | . 4 3 . 3 5 8 Tactical Retreats 8 | . 1 . . 1 1 5 Traps | -11 -10 -10 -10 -9 -8 -8 ------- Run | Yrd Mat Min Exi Min Mat Sto Traps Triggered 1 | . . . . . 1 . Indirectly . | . . . . . . . Trap Hack Attempts . | . . . . . . . Triggered . | . . . . . . . Disarmed . | . . . . . . . Reprogrammed . | . . . . . . . Reused . | . . . . . . . Traps Extracted . | . . . . . . . Installed . | . . . . . . . Triggered . | . . . . . . . Objects Rigged 1 | . . . . . 1 . Exploded 1 | . . . . . 1 . Machines | -11 -10 -10 -10 -9 -8 -8 ---------- Run | Yrd Mat Min Exi Min Mat Sto Machines Disabled 3 | . . . . . 2 1 Max in Single Turn 2 | . . . . . 2 1 Machines Repaired . | . . . . . . . Machines Dismantled . | . . . . . . . Machines Sabotaged . | . . . . . . . Overloaded Fab Kills . | . . . . . . . Hacking | -11 -10 -10 -10 -9 -8 -8 --------- Run | Yrd Mat Min Exi Min Mat Sto Machines Accessed 19 | . 5 1 2 . 8 3 Terminals 13 | . 4 . . . 7 2 Fabricators . | . . . . . . . Repair Stations . | . . . . . . . Recycling Units 2 | . 1 . . . . 1 Scanalyzers 1 | . . . . . 1 . Garrison Access . | . . . . . . . Total Hacks 83 | . 15 1 5 . 51 11 Successful 58 | . 6 1 5 . 39 7 Failed 24 | . 8 . . . 12 4 Catastrophic 1 | . . . . . 1 . Database Lockouts 1 | . 1 . . . . . Manual 54 | . 13 . 1 . 33 7 Terminals 53 | . 12 . . . 33 8 Fabricators . | . . . . . . . Repair Stations . | . . . . . . . Recycling Units 6 | . 3 . . . . 3 Scanalyzers 18 | . . . . . 18 . Garrison Access . | . . . . . . . Terminal Hacks 12 | . 1 1 5 . 4 1 Record 4 | . . . 4 . . . Robot Analysis 3 | . 1 . . . 2 . Open Door 2 | . . 1 . . . 1 Branch Access Points 1 | . . . . . 1 . Terminal Index 1 | . . . . . 1 . Derelict Proto ID Bank 1 | . . . 1 . . . Fabricator Hacks . | . . . . . . . Repair Station Hacks . | . . . . . . . Recycling Unit Hacks 1 | . 1 . . . . . Retrieve Components 1 | . 1 . . . . . Scanalyzer 17 | . . . . . 17 . Insert Component 8 | . . . . . 8 . Analyze 9 | . . . . . 9 . Garrison Access Hacks . | . . . . . . . Unauthorized Hacks 28 | . 4 . . . 18 6 Terminals 26 | . 3 . . . 18 5 Track 2 | . . . . . 1 1 Assimilate 7 | . 1 . . . 5 1 Botnet 9 | . 2 . . . 6 1 Detonate 1 | . . . . . 1 . Operators 2 | . . . . . 1 1 Skim 5 | . . . . . 4 1 Fabricators . | . . . . . . . Repair Stations . | . . . . . . . Recycling Units 2 | . 1 . . . . 1 Tunnel 2 | . 1 . . . . 1 Scanalyzers . | . . . . . . . Garrison Access . | . . . . . . . Data Cores Recovered 1 | . 1 . . . . . Used . | . . . . . . . Hacking Detections 13 | . 4 . . . 7 2 Full Trace Events 1 | . . . . . 1 . Feedback Events . | . . . . . . . Feedback Blocked . | . . . . . . . Robot Schematics Acquired . | . . . . . . . Robots Built . | . . . . . . . Authchips . | . . . . . . . Time . | . . . . . . . Total Robot Build Rating . | . . . . . . . Part Schematics Acquired 8 | . . . . . 8 . Parts Built . | . . . . . . . Authchips . | . . . . . . . Time . | . . . . . . . Total Part Build Rating . | . . . . . . . Parts Repaired . | . . . . . . . Time . | . . . . . . . Parts Recycled . | . . . . . . . Recycled Matter . | . . . . . . . Retrieved Matter . | . . . . . . . Retrieved Components 10 | . 10 . . . . . Parts Scanalyzed 8 | . . . . . 8 . Part Schematics Acquired 8 | . . . . . 8 . Parts Damaged . | . . . . . . . Bothacking | -11 -10 -10 -10 -9 -8 -8 ------------ Run | Yrd Mat Min Exi Min Mat Sto Used RIF Installer . | . . . . . . . Robots Hacked . | . . . . . . . Non-combat . | . . . . . . . Combat . | . . . . . . . Robot Hacks Applied . | . . . . . . . Relay Couplers Released . | . . . . . . . Fabnet Peak Effective % . | . . . . . . . Robots Rewired . | . . . . . . . Allies Hacked . | . . . . . . . Hacks Repelled . | . . . . . . . Allies | -11 -10 -10 -10 -9 -8 -8 -------- Run | Yrd Mat Min Exi Min Mat Sto Total Allies 11 | . . 6 . . 3 2 Largest Group 6 | . . 6 6 3 1 2 Highest-Rated Group 114 | . . 114 114 40 10 62 Highest-Rated Ally 31 | . . 31 31 16 10 31 Total Orders 5 | . . . . . 3 2 STAY 3 | . . . . . 2 1 FOLLOW 2 | . . . . . 1 1 Ally Attacks 95 | . . 5 . 58 . 32 Total Damage 1314 | . . 47 . 643 . 624 Kills 14 | . . . . 8 . 6 Allies Corrupted . | . . . . . . . Allies Melted 1 | . . . . . . 1 Intel | -11 -10 -10 -10 -9 -8 -8 ------- Run | Yrd Mat Min Exi Min Mat Sto Robot Analysis Total 2 | . 1 . . . 1 . Derelict Logs Recovered 2 | . . 1 . 1 . . Drone Launches . | . . . . . . . Drone Recoveries . | . . . . . . . Exploration | -11 -10 -10 -10 -9 -8 -8 ------------- Run | Yrd Mat Min Exi Min Mat Sto Turns Passed 7344 | 35 393 1063 835 943 3223 852 Spaces Moved 3305 | 11 186 592 508 339 1272 397 Core 6 | . . . . 3 1 2 Treads 3265 | . 173 592 508 336 1262 394 Legs 32 | 11 13 . . . 7 1 Wheels . | . . . . . . . Hover . | . . . . . . . Flight 2 | . . . . . 2 . Fastest Speed 90 | 120 120 160 160 160 90 160 Average Speed 168 | 120 157 160 160 234 163 162 Slowest Speed 600 | 120 160 160 160 450 450 600 Overloaded Moves . | . . . . . . . Propulsion Burnouts . | . . . . . . . Robots Hopped . | . . . . . . . Cave-ins Triggered . | . . . . . . . Exploration Rate (%) 51 | 2 41 99 71 42 71 35 Regions Visited 6 Branch Regions 4 Pre-discovered Areas 3 | . 1 . 1 . . 1 Known Exits Taken 1 | . . . . . 1 . Unknown Exits Taken 5 | 1 1 1 1 1 . . Scrap Searched 3 | . . 1 . 2 . . Spaces Dug 15 | . . . . . 9 6 Terrain Destroyed 37 | . 2 . . . 29 6 Melee 15 | . . . . . 9 6 Projectile . | . . . . . . . AOE 22 | . 2 . . . 20 . Terrain Rammed . | . . . . . . . Walls Destroyed . | . . . . . . . Machines Disabled . | . . . . . . . Actions | -11 -10 -10 -10 -9 -8 -8 --------- Run | Yrd Mat Min Exi Min Mat Sto Total 4463 | 19 245 667 531 421 2058 522 Wait 608 | . 13 49 15 36 456 39 Move 3299 | 10 185 591 507 338 1271 397 Hop . | . . . . . . . Pick Up 51 | . 9 2 4 5 27 4 Fast Attach 45 | . 2 . 1 2 29 11 Attach 25 | . 3 1 2 2 16 1 Detach 6 | . . 1 1 . 4 . Swap 17 | . 1 . . . 13 3 Drop 65 | 1 8 2 1 2 38 13 Fire 225 | 8 24 21 . 34 138 . Melee 120 | . . . . . 66 54 Ram . | . . . . . . . Kick . | . . . . . . . Crush 2 | . . . . 2 . . Escape Stasis . | . . . . . . . Rewire . | . . . . . . . Trap . | . . . . . . . Miscellaneous . | . . . . . . . Route ------- -11/Scrapyard -10/Materials -10/Mines (discovered 4 exits: *Mat x2 / *Exi / [*Sub]) -10/Exiles -9/Mines -8/Materials (discovered 3 exits: [*Fac x2] / *Sto) -8/Storage History --------- Turn | Location | Event 24 | -11/Scrapyard | Discovered new exit (range 3) 36 | -11/Scrapyard | Entered Materials 316 | -10/Materials | Build established: Mutant 369 | -10/Materials | Discovered new exit (range 7) 414 | -10/Materials | Central database locked down 429 | -10/Materials | Entered Mines 582 | -10/Mines | Discovered new exit (range 9) 740 | -10/Mines | Found a damaged Exp. Sensor Array with a note attached 744 | -10/Mines | Found Prototype Device 910 | -10/Mines | Identified exit to Materials 915 | -10/Mines | Assisted by bots powering up and referring to "LRC-V3" 1158 | -10/Mines | Discovered new exit (range 8) 1339 | -10/Mines | Received a Mining Laser from a helpful Derelict 1355 | -10/Mines | Deemed a non-threat by the Exiles lab entrance 1355 | -10/Mines | Discovered new exit (range 5) 1393 | -10/Mines | Found the Drone Emporium 1415 | -10/Mines | Found Prototype Device 1449 | -10/Mines | Identified Sensor Drone Bay 1492 | -10/Mines | Entered Exiles 1492 | -10/Exiles | Accompanied by 6 allies 1522 | -10/Exiles | Led the pair of lost Derelicts to a safe place 1531 | -10/Exiles | Met 8R-AWN 1558 | -10/Exiles | Met EX-HEX 1641 | -10/Exiles | Met EX-DEC 1782 | -10/Exiles | Learned location of Zion (-6) 2072 | -10/Exiles | Met EX-BIN 2089 | -10/Exiles | Aligned with FarCom system 2091 | -10/Exiles | Given EX-Vault access code 2128 | -10/Exiles | Opened EX-Vault 2137 | -10/Exiles | Found Flying Fortress v7 2178 | -10/Exiles | Warned to stay clear of 0b10 Research branches 2197 | -10/Exiles | Exiles lab attacked by MAIN.C 2287 | -10/Exiles | Identified Exp. Sensor Array 2293 | -10/Exiles | Discovered new exit (range 10) 2327 | -10/Exiles | Left Exiles lab with Flying Fortress v7 2327 | -10/Exiles | Entered Mines 2327 | -9/Mines | Accompanied by 3 allies 2391 | -9/Mines | Discovered new exit (range 8) 2508 | -9/Mines | Received a Rocket Launcher from a helpful Derelict 2666 | -9/Mines | Learned Materials emergency access door positions 2793 | -9/Mines | Core integrity fell below 50% 2863 | -9/Mines | Assembled infested the area 2980 | -9/Mines | Core integrity fell below 20% 3270 | -9/Mines | Entered Materials 3270 | -8/Materials | Evolved 4 slots: Propulsion x2, Utility x2 4254 | -8/Materials | Lost 9 parts (1p4n2u2w) 4274 | -8/Materials | Garrison activated, responded to threat 4318 | -8/Materials | Core integrity fell below 50% 4628 | -8/Materials | Garrison activated, responded to threat 4640 | -8/Materials | Build established: Scavenger-Mutant 5162 | -8/Materials | Discovered new exit (range 5) 5623 | -8/Materials | Discovered new exit (range 5) 5625 | -8/Materials | Discovered new exit (range 7) 5751 | -8/Materials | Build established: Hacker-Mutant 6368 | -8/Materials | Identified exit to Storage 6493 | -8/Materials | Entered Storage 6493 | -8/Storage | Accompanied by 1 ally 6708 | -8/Storage | Core integrity fell below 20% 6828 | -8/Storage | Build established: Scavenger-Mutant 7207 | -8/Storage | Met a pair of Derelict thieves 7210 | -8/Storage | Build established: Hacker-Mutant 7293 | -8/Storage | First assault squad dispatched 7345 | -8/Storage | Destroyed by L-31 Rogue with Katana Last Messages --------------- 07295_ K-01 Serf collects debris. 07297_ Dropped Lgt. Armor Plating. 07298_ Acquired 10 matter. 07299_ K-01 Serf collects debris. 07309_ Acquired Broken Carbon-fiber Leg. 07311_ Dropped Broken Carbon-fiber Leg. 07313_ K-01 Serf collects debris. 07313_ Acquired 10 matter. 07317_ K-01 Serf collects debris. 07326_ Acquired Carbon-fiber Leg. 07327_ C-30 ARC bursts open, deploying its payload. 07327_ G-50 Soldier unfolds itself. 07327_ L-31 Rogue unfolds itself. 07327_ G-47 Trooper unfolds itself. 07327_ M-28 Smith unfolds itself. 07327_ Acquired 10 matter. 07332_ 06-954(g) destroyed. 07334_ Lgt. Treads destroyed. 07342_ U-05 Engineer builds a Wall. 07342_ Carbon-fiber Leg severed. Map ----- +----------------------------------------------------+ | ?????????????????????????????????????????????????? | | ?????????????????????????????????????????????????? | | ?????????????????????????????????????????????????? | | ?????????????????????????????????????????????????? | | ######################???????????????????????????? | | # #???????????????????????????? | | # ##??????????????????????????? | | # "#??????????????????????????? | | # ################"##??????????????????????????? | | # # #????###???????????????????????????? | | # # """" #??????????? ????????????????????? | | # # "!* [ #??????????# #???????????????????? | | # # " !" #??????????# #???????????????????? | | +% %+ "%=" #??????????# %#???????????????????? | | # # "]!" #??????????# #???????????????????? | | # # " "" #??????????+ #???????????????????? | | # # #??????????# /???????????????????? | | # #####+##+##??????????# #??????????Y????????? | | # #???# #???????????+ #???????????????????? | | # #???# #???????????# #???????????????????? | | # #???# #???????????# #???????????????????? | | # #???# #???????????# #???????????????????? | | +% #???# #???????????# #???????????????????? | | #% #???# #?????????### u #???????????????????? | | # #???# #############lgg#####???????????????? | | # #???# k =%[ u!@g*%##][#???????????????? | | # ##### =%! k=%*m[##][#???????????????? | | # %!%=##][#???????????????? | | ##+###### ################ ! ## "##??????????????? | | ##??# #??????????#???# + T#??????????????? | | T#??# #?????????# ##?# # ##??????????????? | | #" "###?# #????????? #?# #####???????????????? | | ! #?# #????????? ^ #?# #???????????????????? | | ! !#?# #????????? #?# #???????????????????? | | !! ! ###+#######??" ^ ""# #???????????????????? | | ! ! !##%% #??" Y"# #???????????????????? | | ######## #??" ^ "?# #???????????????????? | | ?????### ]] #? ^ #?# #???????????????????? | | ?????#"" ][ #""" !#?# #???????????????????? | | ?????#"Y ][ #""" #?# #???????????????????? | | ?????#"" #""" ^ #?# r#???????????????????? | | ?????### #"""^ #?# #???????????????????? | | ??????#[ = #""" #?# #???????????????????? | | ????#### !%= # % [ ### ##??????????????????? | | ##########+#########+#### ################???? | | %^ =*%*= % r% | | ^ ===! =*! T | | ^ =* % | | ######################### #################### | | ????????????????????????#######??????????????????? | +----------------------------------------------------+ Best States ------------- Heat Dissipation 31 Energy Generation 16 Energy Capacity 290 Matter Stores 300 Matter Capacity 300 Sight Range 20 Terrain Scan Density 10 Armor Coverage 600 Resistance: TH 10 Core Shielding 20 Evasion (%) 45 Recoil Reduction 4 Offensive Hacking 20 Defensive Hacking 10 Item Schematics ----------------- Adv. Visual Processing Unit | -8/Materials | Scanalyzed Plasma Cutter | -8/Materials | Scanalyzed System Shield | -8/Materials | Scanalyzed Rocket Launcher | -8/Materials | Scanalyzed Imp. Heat Sink | -8/Materials | Scanalyzed Graphene Brace | -8/Materials | Scanalyzed Imp. Assault Rifle | -8/Materials | Scanalyzed Deuterium Engine | -8/Materials | Scanalyzed Robot Schematics ------------------ None Fabricated ------------ Nothing Alien Tech Used ----------------- None Achievements -------------- None Challenges ------------ None Game ------ Seed SwordArmoredInsulator Manual? 0 Play Time 00:57:25 Cumulative 129.5 hours Start 2024.11.23 @ 15:23:26 End 2024.11.24 @ 04:48:35 Sessions 9 Manual Loads 0 Difficulty Rogue Special Mode None Game No. 242 Rogue 242 Adventurer 0 Explorer 0 Win Type - Total 0 Types 0/0/0/0/0/0/0/0/0 Lore% 43 Gallery% 40 Achievement% 36 Wizard Run 0 Options --------- Layout 0 ASCII 0 Keyboard 0 Movement Mouse Keybinds 0 Fullscreen 1 Font 24/Smallcaps Map View 91x25 Zoom Use 92% Tactical HUD 1 Map Filters NONE Filters NONE Steam 1 RUN: 24b57e4e-26fa-40ec-9d8c-bed3bbdebd22